bitfinex/quotes_SOLUSD_20250811
["timestamp","ask_amount","ask_price","bid_price","bid_amount"]
[1754910492626,0.03,181.03,181.02,96.01787974]
[1754910492797,0.03,181.03,181.02,95.99787974]
[1754910493322,0.03,181.03,181.02,55.17787974]
[1754910493519,0.03,181.03,181.02,95.27787974]
[1754910495330,0.03,181.03,181.02,183.97787974]
[1754910495506,0.03,181.03,181.02,183.4254546]
[1754910498601,0.03,181.03,181.02,184.1454546]
[1754910498801,0.03,181.03,181.02,183.4254546]
[1754910499142,0.69,181.03,181.02,103.80621557]
[1754910499328,0.69,181.03,181.02,143.82621557]
[1754910499622,0.69,181.03,181.02,40.02]
[1754910501437,0.69,181.03,181.02,45.01693478]
[1754910501814,0.69,181.03,181.02,40.02]
[1754910503808,0.69,181.03,181.02,15.10621557]
[1754910504027,0.03,181.03,181.02,63.06099617]
[1754910504331,140.03,181.03,181.02,63.06099617]
[1754910504543,140.03,181.03,181.02,55.06621557]
[1754910505913,0.03,181.03,181.02,103.80621557]
[1754910506235,0.03,181.03,181.02,143.74621557]
[1754910506828,0.03,181.03,181.02,183.26524763]
[1754910508034,0.03,181.03,181.02,143.32524763]
[1754910508246,0.03,181.03,181.02,183.24524763]
[1754910508735,8.6847806,181.03,181.0,0.06]
[1754910508943,7.9947806,181.01,181.0,0.06]
[1754910509321,0.03,181.03,180.96,0.06]
[1754910509322,7.9947806,180.99,180.96,0.06]
[1754910509521,7.9947806,180.97,180.92,0.06]
[1754910509850,0.66,180.96,180.95,39.94]
[1754910510339,0.66,181.0,180.95,7.9947806]
[1754910510544,0.66,180.99,180.97,7.9947806]
[1754910510722,0.66,180.99,180.98,47.9947806]
[1754910510923,0.66,181.01,180.98,47.9947806]
[1754910511244,0.69,181.03,181.0,7.9947806]
[1754910511422,0.69,181.03,180.96,50.31360448]
[1754910511423,0.69,181.03,181.01,47.9747806]
[1754910511751,0.03,181.03,181.02,7.9947806]
[1754910511915,0.03,181.03,181.02,23.65342131]
[1754910512116,0.03,181.03,181.02,23.10099617]
[1754910512335,0.03,181.03,181.02,68.64524763]
[1754910512710,0.03,181.03,181.02,63.12099617]
[1754910513117,0.69,181.03,180.99,7.9947806]
[1754910513412,0.69,181.03,181.0,40.02]
[1754910513920,8.6847806,181.03,181.0,40.02]
[1754910514132,7.9947806,181.01,181.0,40.02]
[1754910514333,8.6547806,181.01,181.0,40.02]
[1754910516642,8.6547806,181.01,180.89,0.66]
[1754910516824,0.66,181.0,180.95,40.02]
[1754910517341,7.9947806,180.96,180.95,40.02]
[1754910517531,8.6547806,180.96,180.95,40.02]
[1754910517841,19.33488011,181.02,180.95,40.02]
[1754910517842,7.9947806,180.98,180.95,40.02]
[1754910518028,0.66,180.97,180.95,40.02]
[1754910519043,0.03,181.03,180.96,7.9947806]
[1754910519225,140.0,181.0,180.96,7.9947806]
[1754910519422,0.66,180.99,180.96,7.9947806]
[1754910519748,140.66,181.0,180.96,7.9947806]
[1754910519947,0.66,180.99,180.96,7.9947806]
[1754910520243,0.66,180.99,180.95,53.54111487]
[1754910520547,0.66,180.99,180.96,13.52077012]
[1754910520856,140.0,181.0,180.96,13.52077012]
[1754910521044,140.66,181.0,180.96,13.52077012]
[1754910521728,140.0,181.0,180.98,7.9947806]
[1754910521926,140.0,181.0,180.99,40.0]
[1754910522817,140.0,181.0,180.99,54.17994773]
[1754910523024,0.03,181.03,180.99,54.17994773]
[1754910523248,0.03,181.03,181.02,7.9947806]
[1754910523448,0.03,181.03,181.02,47.9947806]
[1754910524833,0.03,181.03,181.02,54.17903206]
[1754910525246,0.03,181.03,181.02,53.51903206]
[1754910526338,0.03,181.03,181.02,40.0]
[1754910526647,0.03,181.03,181.02,47.9947806]
[1754910527646,0.03,181.03,181.02,53.51903206]
[1754910527851,0.03,181.03,181.02,54.17903206]
[1754910528044,0.03,181.03,181.02,14.17903206]
[1754910528262,0.03,181.03,181.02,54.13903206]
[1754910529256,0.03,181.03,181.02,69.24524763]
[1754910529435,0.03,181.03,181.02,69.79767277]
[1754910535453,0.03,181.03,181.02,158.49767277]
[1754910535650,0.03,181.03,181.02,157.94524763]
[1754910536560,0.03,181.03,181.02,117.98524763]
[1754910536765,0.03,181.03,181.02,157.24524763]
[1754910536960,0.03,181.03,181.02,137.80099617]
[1754910537259,0.69,181.03,181.02,39.92]
[1754910539152,0.03,181.03,181.02,47.9147806]
[1754910539859,0.03,181.03,181.02,68.54524763]
[1754910540369,0.03,181.03,181.02,69.77767277]
[1754910540547,0.03,181.04,181.02,69.77767277]
[1754910540548,0.03,181.05,181.03,20.63016187]
[1754910540738,0.03,181.05,181.04,63.57336028]
[1754910540943,0.03,181.05,181.04,64.25336028]
[1754910541339,0.03,181.05,181.04,49.10099617]
[1754910541550,0.03,181.05,181.04,89.02099617]
[1754910542047,0.03,181.05,181.04,63.02099617]
[1754910542251,0.03,181.05,181.04,64.25336028]
[1754910542566,0.03,181.05,181.04,55.02621557]
[1754910542861,0.03,181.05,181.04,15.10621557]
[1754910543070,0.69,181.05,181.04,55.02621557]
[1754910543442,0.03,181.05,181.04,63.02099617]
[1754910543647,0.03,181.05,181.04,68.54463735]
[1754910544167,0.03,181.05,181.04,69.22463735]
[1754910544477,0.03,181.05,181.04,68.54463735]
[1754910544765,0.03,181.05,181.04,95.22463735]
[1754910545876,0.03,181.05,181.04,94.54463735]
[1754910546361,0.03,181.05,181.04,95.22463735]
[1754910547071,0.03,181.05,181.04,69.77700146]
[1754910548955,0.03,181.05,181.04,68.54463735]
[1754910549566,0.03,181.05,181.04,60.54985675]
[1754910549756,0.03,181.05,181.04,68.54463735]
[1754910550674,0.03,181.05,181.04,94.54463735]
[1754910551362,0.03,181.05,181.04,68.54463735]
[1754910552359,0.03,181.05,181.04,69.22463735]
[1754910552965,0.03,181.05,181.04,68.54463735]
[1754910553274,0.03,181.05,181.04,157.24463735]
[1754910553661,0.03,181.05,181.04,117.32463735]
[1754910553854,0.03,181.05,181.04,157.22463735]
[1754910554384,0.03,181.05,181.04,117.32463735]
[1754910554679,0.69,181.05,181.04,88.7]
[1754910554852,0.69,181.05,181.04,65.9]
[1754910555059,0.69,181.05,181.04,39.9]
[1754910555262,140.69,181.05,181.04,39.9]
[1754910555450,0.69,181.05,181.04,39.9]
[1754910555975,0.03,181.05,181.04,39.9]
[1754910556166,0.03,181.05,181.04,63.00099617]
[1754910556369,0.03,181.05,181.04,23.10099617]
[1754910556679,0.03,181.05,181.04,63.00099617]
[1754910556977,0.03,181.05,181.04,55.00621557]
[1754910557376,0.03,181.05,181.04,68.52463735]
[1754910557968,0.03,181.05,181.04,63.00099617]
[1754910558857,0.03,181.05,181.04,55.00621557]
[1754910560087,0.69,181.05,181.04,39.9]
[1754910561281,0.69,181.05,181.03,15.10621557]
[1754910561662,0.69,181.05,181.04,39.9]
[1754910561861,0.03,181.05,181.04,39.9]
[1754910562061,8.0247806,181.05,181.04,39.9]
[1754910562366,8.7147806,181.05,181.04,39.9]
[1754910562769,8.7147806,181.05,181.03,88.7]
[1754910562966,0.69,181.04,181.03,88.7]
[1754910563166,0.69,181.04,181.03,128.6]
[1754910563569,0.69,181.04,181.03,88.7]
[1754910563971,0.69,181.04,181.03,128.6]
[1754910564271,140.69,181.04,181.03,128.6]
[1754910564762,140.0,181.04,181.03,128.6]
[1754910564962,140.0,181.04,181.03,39.9]
[1754910565378,140.69,181.04,181.03,39.9]
[1754910565774,140.0,181.04,181.03,39.9]
[1754910566486,0.03,181.05,181.03,45.58627776]
[1754910566688,0.03,181.05,181.04,4.99627776]
[1754910568782,0.03,181.05,181.03,45.42380939]
[1754910568964,0.03,181.05,181.04,4.99627776]
[1754910569674,0.03,181.05,181.03,5.52389441]
[1754910569873,0.03,181.05,181.04,44.89627776]
[1754910570589,0.03,181.05,181.04,39.9]
[1754910570782,0.03,181.05,181.04,60.00249333]
[1754910571089,0.03,181.05,181.04,149.39249333]
[1754910571090,0.01,181.05,181.04,149.39249333]
[1754910571288,0.01,181.05,181.04,154.91613451]
[1754910571488,0.01,181.05,181.04,149.91985675]
[1754910571691,0.01,181.05,181.04,154.91613451]
[1754910572882,0.01,181.05,181.04,154.22613451]
[1754910574793,5.69627776,181.05,181.04,88.7]
[1754910574990,5.69627776,181.05,181.04,128.6]
[1754910575491,0.7,181.05,181.04,39.9]
[1754910575881,5.69627776,181.05,181.04,39.9]
[1754910576082,0.01,181.05,181.04,39.9]
[1754910576278,0.7,181.05,181.04,39.9]
[1754910576892,0.01,181.05,181.04,65.52613451]
[1754910577492,0.01,181.05,181.04,66.21613451]
[1754910577682,0.01,181.05,181.04,154.91613451]
[1754910577885,0.01,181.05,181.04,108.80249333]
[1754910578193,0.01,181.05,181.04,154.91613451]
[1754910580002,0.01,181.05,181.04,154.20613451]
[1754910580204,0.7,181.05,181.04,128.58]
[1754910580502,0.01,181.05,181.04,128.58]
[1754910580704,5.69627776,181.05,181.02,0.06]
[1754910581002,0.69,181.04,181.03,39.88]
[1754910582013,0.01,181.05,181.04,20.62985675]
[1754910582211,0.01,181.05,181.04,28.61892811]
[1754910582799,0.01,181.05,181.04,23.09528693]
[1754910583823,0.7,181.05,181.04,26.0]
[1754910583996,0.7,181.05,181.04,65.88]
[1754910584195,0.7,181.05,181.02,0.06]
[1754910584496,7.98907136,181.03,181.02,0.06]
[1754910584822,8.67907136,181.03,181.02,39.94]
[1754910585194,0.69,181.03,181.02,39.94]
[1754910587718,0.01,181.05,181.02,47.92907136]
[1754910587900,0.7,181.05,181.04,7.98907136]
[1754910588213,30.7,181.05,181.04,39.88]
[1754910589424,30.01,181.05,181.04,47.86907136]
[1754910589722,0.01,181.05,181.04,47.86907136]
[1754910590306,0.01,181.05,181.04,39.88]
[1754910590511,0.01,181.05,181.04,47.86907136]
[1754910591120,0.01,181.05,181.04,53.39271254]
[1754910591315,0.01,181.05,181.04,54.07271254]
[1754910591713,0.01,181.05,181.04,48.54907136]
[1754910591910,0.01,181.05,181.04,47.86907136]
[1754910592103,0.01,181.05,181.04,54.07271254]
[1754910592306,0.03,181.07,181.04,157.87892811]
[1754910592498,0.03,181.07,181.06,7.98907136]
[1754910592706,0.03,181.07,181.06,47.86907136]
[1754910592929,0.03,181.07,181.06,48.54907136]
[1754910593435,0.72,181.07,181.06,47.86907136]
[1754910593626,0.03,181.07,181.06,47.86907136]
[1754910593833,0.72,181.07,181.04,122.68907136]
[1754910594000,0.72,181.07,181.05,39.88]
[1754910594204,0.69,181.06,181.05,39.88]
[1754910594432,140.69,181.06,181.05,39.88]
[1754910595802,146.21303103,181.06,181.05,39.88]
[1754910596612,140.69,181.06,181.05,39.88]
[1754910597409,146.21303103,181.06,181.05,39.88]
[1754910597608,154.20210239,181.06,181.05,39.88]
[1754910597847,140.69,181.06,181.05,39.88]
[1754910599236,140.0,181.06,181.05,39.88]
[1754910599817,140.0,181.06,181.05,47.86907136]
[1754910600330,0.03,181.07,181.05,53.39240745]
[1754910600627,0.03,181.07,181.06,7.98907136]
[1754910601308,0.03,181.07,181.06,8.66907136]
[1754910601508,0.03,181.07,181.06,48.52907136]
[1754910601726,0.03,181.07,181.06,47.84907136]
[1754910602236,0.03,181.07,181.06,7.98907136]
[1754910602411,0.03,181.07,181.06,53.37210239]
[1754910603542,0.01,181.07,181.06,142.75210239]
[1754910603730,0.01,181.07,181.06,102.89210239]
[1754910604038,0.01,181.07,181.06,142.75210239]
[1754910604728,0.01,181.07,181.06,157.85831796]
[1754910606742,0.01,181.07,181.06,157.17831796]
[1754910608838,0.01,181.07,181.06,157.85831796]
[1754910609021,0.01,181.07,181.06,157.17831796]
[1754910609226,0.01,181.07,181.06,151.65528693]
[1754910609433,0.01,181.07,181.06,62.95528693]
[1754910609934,0.7,181.07,181.06,39.86]
[1754910610320,0.01,181.07,181.06,44.8545963]
[1754910611626,0.01,181.07,181.06,39.86]
[1754910612149,0.01,181.07,181.06,50.37762733]
[1754910614237,0.01,181.07,181.06,51.05762733]
[1754910614438,0.01,181.07,181.06,44.8545963]
[1754910615058,0.7,181.07,181.06,39.86]
[1754910615260,0.7,181.07,181.06,44.8545963]
[1754910615431,0.7,181.07,181.06,39.86]
[1754910616340,0.01,181.07,181.06,39.86]
[1754910616552,0.01,181.07,181.06,44.8545963]
[1754910616729,0.01,181.07,181.04,94.22354122]
[1754910616930,0.7,181.07,181.05,39.84]
[1754910617131,0.7,181.07,181.05,44.8345963]
[1754910617624,0.01,181.07,181.06,4.9945963]
[1754910618849,0.01,181.07,181.05,45.36313825]
[1754910619053,0.01,181.07,181.06,4.9945963]
[1754910619833,0.01,181.07,181.05,45.36313825]
[1754910620037,0.01,181.07,181.06,10.51762733]
[1754910621441,0.01,181.07,181.06,11.19762733]
[1754910621637,0.01,181.07,181.06,10.51762733]
[1754910624339,0.01,181.07,181.06,4.9945963]
[1754910624756,0.01,181.07,181.06,44.8145963]
[1754910625460,0.01,181.07,181.06,45.4945963]
[1754910625876,0.01,181.07,181.06,51.01762733]
[1754910626172,0.01,181.07,181.06,66.1238429]
[1754910626575,0.03,181.09,181.06,66.1238429]
[1754910626753,0.03,181.09,181.06,93.6945963]
[1754910626959,0.69,181.08,181.07,39.82]
[1754910627875,6.21242102,181.08,181.07,39.82]
[1754910628052,6.21242102,181.08,181.03,26.06]
[1754910628053,11.20701732,181.08,181.03,0.06]
[1754910628370,5.6845963,181.07,181.04,39.82]
[1754910628573,140.69,181.06,181.04,39.82]
[1754910628771,0.69,181.05,181.04,39.82]
[1754910631341,0.69,181.08,181.04,39.82]
[1754910631549,0.69,181.08,181.06,4.9945963]
[1754910631766,0.69,181.08,181.07,39.82]
[1754910632558,6.21242102,181.08,181.07,39.82]
[1754910632766,0.69,181.08,181.07,39.82]
[1754910633565,6.21242102,181.08,181.07,39.82]
[1754910634150,11.20701732,181.08,181.03,5.0545963]
[1754910634351,0.69,181.07,181.04,39.82]
[1754910634561,0.69,181.07,181.05,39.8]
[1754910634872,140.0,181.06,181.05,39.8]
[1754910635949,5.52242102,181.08,181.05,39.8]
[1754910636155,6.21242102,181.08,181.05,39.8]
[1754910636354,5.52242102,181.08,181.05,39.8]
[1754910636558,0.69,181.07,181.05,39.8]
[1754910636849,10.51701732,181.08,181.05,39.8]
[1754910637057,0.69,181.06,181.05,39.8]
[1754910637251,5.6845963,181.06,181.03,0.06]
[1754910637456,5.6845963,181.05,181.04,39.8]
[1754910637767,5.6845963,181.05,181.03,0.06]
[1754910638068,19.32847359,181.08,181.04,39.8]
[1754910638259,13.80605257,181.08,181.04,39.8]
[1754910638469,0.69,181.07,181.04,39.8]
[1754910639274,4.9945963,181.05,181.04,39.8]
[1754910639476,5.6845963,181.05,181.04,39.8]
[1754910640175,11.20793239,181.05,181.04,39.8]
[1754910640866,41.20793239,181.05,181.04,39.8]
[1754910641772,30.0,181.05,181.04,44.7945963]
[1754910642370,140.0,181.06,181.04,44.7945963]
[1754910642574,140.0,181.06,181.05,4.9945963]
[1754910642771,170.0,181.06,181.05,4.9945963]
[1754910643461,140.0,181.06,181.05,4.9945963]
[1754910643669,140.0,181.06,181.04,44.7945963]
[1754910644375,0.69,181.05,181.03,0.06]
[1754910644550,4.9945963,181.04,181.03,0.06]
[1754910644749,4.9945963,181.04,181.03,39.86]
[1754910644954,5.6845963,181.04,181.03,39.86]
[1754910645361,0.69,181.04,181.03,39.86]
[1754910645547,5.6845963,181.04,181.03,39.86]
[1754910646004,11.20823748,181.04,181.03,39.86]
[1754910646886,6.21364118,181.04,181.03,39.86]
[1754910647584,5.6845963,181.04,181.03,0.06]
[1754910647789,5.6845963,181.04,181.03,39.84]
[1754910649172,41.20823748,181.04,181.03,39.84]
[1754910650753,40.51823748,181.04,181.03,39.84]
[1754910650955,30.0,181.04,181.03,39.84]
[1754910651154,5.52339449,181.05,181.03,39.84]
[1754910651760,5.52312791,181.06,181.03,39.84]
[1754910651961,140.0,181.05,181.03,44.8345963]
[1754910652185,0.03,181.09,181.04,4.9945963]
[1754910652478,0.69,181.08,181.03,26.06]
[1754910652775,0.69,181.08,181.05,39.78]
[1754910653084,10.54681596,181.09,181.05,44.7745963]
[1754910653381,30.0,181.06,181.05,45.4845963]
[1754910653979,5.55221966,181.09,181.05,45.4845963]
[1754910654571,0.03,181.07,181.05,45.4845963]
[1754910654772,0.03,181.07,181.05,39.78]
[1754910654972,0.03,181.07,181.05,44.7745963]
[1754910655178,0.03,181.07,181.06,5.7045963]
[1754910656984,0.03,181.07,181.06,4.9945963]
[1754910657688,0.03,181.07,181.06,5.7045963]
[1754910658869,0.03,181.07,181.06,4.9945963]
[1754910659762,0.03,181.07,181.05,44.7745963]
[1754910660003,0.72,181.07,181.05,39.78]
[1754910660198,0.03,181.07,181.05,44.7745963]
[1754910660693,0.03,181.07,181.05,39.78]
[1754910660868,5.7145963,181.07,181.03,26.06]
[1754910661072,4.9945963,181.05,181.03,26.06]
[1754910661268,5.6845963,181.05,181.04,39.76]
[1754910661491,6.21364118,181.04,181.03,0.06]
[1754910661697,5.7145963,181.07,181.03,39.82]
[1754910662003,5.7145963,181.07,181.03,40.53]
[1754910662300,0.03,181.07,181.04,5.7045963]
[1754910662596,0.03,181.07,181.06,4.9945963]
[1754910662798,0.03,181.07,181.06,44.7545963]
[1754910663700,0.03,181.07,181.06,39.76]
[1754910663994,0.03,181.07,181.06,44.7545963]
[1754910664163,0.03,181.07,181.06,39.76]
[1754910664365,0.03,181.07,181.06,60.57081187]
[1754910665474,0.03,181.07,181.06,55.57621557]
[1754910665677,0.03,181.07,181.06,66.0938429]
[1754910665866,0.03,181.07,181.06,60.57081187]
[1754910666490,0.03,181.07,181.06,66.0938429]
[1754910666705,0.03,181.07,181.06,60.57081187]
[1754910666887,0.03,181.07,181.06,44.7545963]
[1754910667196,0.03,181.07,181.06,45.4645963]
[1754910667595,0.03,181.07,181.06,44.7545963]
[1754910668371,0.03,181.07,181.06,39.76]
[1754910668595,0.03,181.07,181.06,4.9945963]
[1754910668783,0.03,181.07,181.06,44.7345963]
[1754910669102,0.03,181.07,181.06,45.4445963]
[1754910669996,0.03,181.07,181.06,39.74]
[1754910671897,0.03,181.07,181.06,44.7345963]
[1754910672779,0.03,181.07,181.06,39.74]
[1754910672978,0.03,181.07,181.06,44.7345963]
[1754910674219,0.03,181.07,181.06,39.74]
[1754910675694,0.03,181.07,181.03,47.40006969]
[1754910675900,140.0,181.06,181.04,44.7145963]
[1754910676079,140.69,181.06,181.04,44.7145963]
[1754910676283,140.0,181.06,181.04,44.7145963]
[1754910677304,0.03,181.07,181.05,5.7045963]
[1754910677504,0.03,181.07,181.06,44.7145963]
[1754910677709,0.03,181.07,181.06,39.72]
[1754910677882,0.03,181.07,181.06,44.7145963]
[1754910681716,0.69,181.07,181.06,39.7]
[1754910681916,5.6845963,181.07,181.03,0.06]
[1754910682216,0.66,181.06,181.04,39.7]
[1754910682414,0.66,181.05,181.04,39.7]
[1754910684687,6.18333609,181.05,181.04,39.7]
[1754910686043,11.17793239,181.05,181.03,0.06]
[1754910686197,11.17793239,181.05,181.04,39.7]
[1754910686511,10.51793239,181.05,181.04,39.7]
[1754910686895,11.17793239,181.05,181.04,39.7]
[1754910687292,6.18333609,181.05,181.04,39.7]
[1754910687501,11.17793239,181.05,181.04,39.7]
[1754910687810,11.17793239,181.05,181.03,0.06]
[1754910688006,5.6545963,181.04,181.03,0.06]
[1754910688212,5.6545963,181.04,181.03,39.76]
[1754910688424,0.66,181.04,181.03,39.76]
[1754910689213,10.51793239,181.05,181.03,39.76]
[1754910689514,0.03,181.07,181.04,5.6945963]
[1754910689704,0.03,181.07,181.06,4.9945963]
[1754910690096,0.03,181.07,181.06,5.6945963]
[1754910690316,0.03,181.07,181.06,4.9945963]
[1754910690496,0.03,181.07,181.05,4.9945963]
[1754910690816,0.69,181.07,181.06,39.7]
[1754910691796,11.20732231,181.07,181.06,39.7]
[1754910692402,25.01413735,181.07,181.03,0.06]
[1754910692696,26.0,181.03,181.0,0.06]
[1754910693017,30.9945963,181.01,180.98,0.06]
[1754910693200,4.9945963,181.0,180.98,0.06]
[1754910693405,5.6545963,181.0,180.98,0.06]
[1754910694009,11.17945817,181.0,180.98,0.06]
[1754910694795,6.18486187,181.0,180.98,0.06]
[1754910695021,5.52486187,181.0,180.99,39.74]
[1754910696130,5.52425146,181.02,180.99,39.74]
[1754910696294,10.51884776,181.02,180.99,39.74]
[1754910696500,11.17884776,181.02,180.99,39.74]
[1754910696700,6.18425146,181.02,180.99,39.74]
[1754910696935,0.66,181.01,180.99,39.74]
[1754910697111,4.9945963,181.0,180.99,0.06]
[1754910697315,5.6545963,181.0,180.99,39.74]
[1754910697805,5.6545963,181.0,180.99,0.06]
[1754910698122,5.52486187,181.0,180.99,39.74]
[1754910698298,5.52425452,181.02,180.99,39.74]
[1754910699130,5.52425452,181.02,180.99,40.44]
[1754910699327,0.03,181.07,181.01,4.9945963]
[1754910699517,5.52328059,181.06,181.02,40.38]
[1754910699718,6.18328059,181.06,181.02,4.9945963]
[1754910699908,0.66,181.05,181.03,39.68]
[1754910700429,5.52364118,181.04,181.03,39.68]
[1754910700606,145.52364118,181.04,181.03,39.68]
[1754910702028,151.17823748,181.04,181.03,39.68]
[1754910702332,151.17823748,181.04,180.99,0.06]
[1754910702512,0.66,181.03,181.0,39.68]
[1754910702707,4.9945963,181.01,181.0,39.68]
[1754910702905,5.6545963,181.01,181.0,39.68]
[1754910703314,0.66,181.01,181.0,39.68]
[1754910703536,5.52453865,181.02,181.0,39.68]
[1754910703838,5.52401376,181.03,181.01,5.6945963]
[1754910704748,5.52401376,181.03,181.01,4.9945963]
[1754910705040,140.0,181.04,181.02,4.9945963]
[1754910705208,140.0,181.04,181.03,45.3745963]
[1754910706119,0.03,181.07,181.03,45.3745963]
[1754910706320,0.03,181.07,181.06,4.9945963]
[1754910706517,0.03,181.07,181.06,44.6745963]
[1754910706722,0.03,181.07,181.06,45.3745963]
[1754910707434,0.03,181.07,181.06,44.6745963]
[1754910707833,0.03,181.07,181.06,39.68]
[1754910708036,0.03,181.07,181.06,39.66]
[1754910708241,0.69,181.07,181.06,39.66]
[1754910708414,0.03,181.07,181.06,39.66]
[1754910708840,0.03,181.07,181.06,47.65243554]
[1754910709032,0.03,181.07,181.06,39.66]
[1754910711426,0.69,181.07,181.06,39.66]
[1754910711826,14.20516155,181.07,181.02,26.0]
[1754910712038,7.99243554,181.06,181.03,39.66]
[1754910712236,140.0,181.05,181.04,7.99243554]
[1754910712426,140.0,181.05,181.04,8.68243554]
[1754910712628,140.66,181.05,181.04,39.66]
[1754910712824,148.65243554,181.05,180.99,0.06]
[1754910713026,7.99243554,181.04,181.0,39.66]
[1754910713222,8.65243554,181.04,181.0,39.66]
[1754910713419,147.99243554,181.05,181.01,0.69]
[1754910713816,13.51607672,181.04,181.0,39.66]
[1754910714019,13.51607672,181.04,181.0,48.34243554]
[1754910714446,13.51607672,181.04,181.0,40.35]
[1754910714628,14.17607672,181.04,181.0,39.66]
[1754910715038,27.98517968,181.04,181.0,39.66]
[1754910715639,27.98517968,181.04,180.99,8.05243554]
[1754910715947,13.51607672,181.04,181.01,39.66]
[1754910716930,5.52364118,181.04,181.01,39.66]
[1754910718442,0.03,181.07,181.02,8.68243554]
[1754910718641,0.03,181.07,181.05,7.99243554]
[1754910718853,0.03,181.07,181.06,39.64]
[1754910721245,0.69,181.07,181.06,39.64]
[1754910721426,8.68243554,181.07,181.01,34.68243554]
[1754910721629,7.99243554,181.05,181.02,39.64]
[1754910721954,13.51574528,181.06,181.02,40.33]
[1754910722324,0.66,181.05,181.02,39.64]
[1754910722530,13.51574528,181.06,181.02,39.64]
[1754910722730,140.0,181.04,181.03,39.64]
[1754910724050,145.52364118,181.04,181.03,39.64]
[1754910724939,140.0,181.04,181.01,8.68243554]
[1754910725151,140.0,181.04,181.02,40.33]
[1754910725638,140.0,181.04,181.02,0.69]
[1754910725954,140.0,181.04,181.03,39.62]
[1754910726448,140.0,181.04,181.02,0.69]
[1754910726859,140.0,181.04,181.03,39.62]
[1754910727236,145.52364118,181.04,181.03,39.62]
[1754910727953,140.0,181.04,181.03,39.62]
[1754910729434,145.52364118,181.04,181.03,39.62]
[1754910729645,140.0,181.04,181.03,39.62]
[1754910732151,0.03,181.07,181.03,45.30643364]
[1754910732327,0.03,181.07,181.04,0.69]
[1754910732527,0.03,181.07,181.05,44.61643364]
[1754910733129,5.55283683,181.07,181.05,39.62]
[1754910733848,0.03,181.07,181.05,39.62]
[1754910734155,0.03,181.07,181.05,44.61643364]
[1754910734360,0.03,181.07,181.06,0.69]
[1754910735055,140.0,181.06,181.05,44.61643364]
[1754910735237,140.0,181.06,181.05,45.30643364]
[1754910736366,0.03,181.07,181.05,45.30643364]
[1754910736659,0.03,181.07,181.06,5.68643364]
[1754910739154,0.03,181.07,181.06,4.99643364]
[1754910739344,0.03,181.07,181.05,44.61643364]
[1754910739533,0.03,181.07,181.06,4.99643364]
[1754910739954,0.03,181.07,181.06,5.68643364]
[1754910741336,0.03,181.07,181.06,0.69]
[1754910741633,0.03,181.07,181.06,5.68643364]
[1754910741840,0.03,181.07,181.06,4.99643364]
[1754910743336,0.03,181.07,181.06,5.65643364]
[1754910744863,0.03,181.07,181.06,4.99643364]
[1754910745241,0.03,181.07,181.05,39.62]
[1754910745441,0.03,181.07,181.05,4.99643364]
[1754910745750,0.03,181.07,181.06,39.58]
[1754910746760,0.03,181.07,181.01,4.99643364]